bitfinex/quotes_ETHUSD_20220215
["timestamp","ask_amount","ask_price","bid_price","bid_amount"]
[1644900704525,1.30403,3016.2,3016.0,0.07036228]
[1644900706074,1.30403,3016.2,3015.4,1.3]
[1644900706075,1.30403,3016.2,3016.1,0.07036228]
[1644900706580,4.61364538,3016.2,3016.0,0.07036228]
[1644900706877,3.34416264,3016.1,3016.0,0.07036228]
[1644900707079,3.34416264,3016.1,3015.4,1.3]
[1644900707377,3.34416264,3016.1,3015.9,0.01031744]
[1644900708179,2.13307,3016.2,3015.9,0.01031744]
[1644900708180,1.30403,3016.2,3015.9,0.01031744]
[1644900708381,0.475,3016.2,3015.5,0.83780147]
[1644900708579,0.475,3016.2,3015.8,0.00990909]
[1644900708821,0.475,3016.2,3015.9,0.07036418]
[1644900709423,3.0518,3016.7,3015.9,0.89920418]
[1644900709622,0.11213997,3016.8,3016.0,0.07036418]
[1644900709822,0.00586544,3016.6,3016.0,0.07036418]
[1644900710224,0.00586544,3016.6,3016.3,1.01778741]
[1644900710725,0.11213997,3016.8,3016.3,1.01778741]
[1644900710925,0.00586622,3016.6,3016.3,1.01778741]
[1644900711931,0.11213997,3016.8,3016.3,1.01778741]
[1644900712128,0.00586622,3016.6,3016.4,0.07035453]
[1644900712576,0.00586622,3016.6,3016.3,1.01778741]
[1644900713177,1.6576217,3017.1,3016.3,1.01778741]
[1644900713178,0.13819997,3017.3,3016.4,3.33279609]
[1644900713378,0.00606339,3016.6,3016.5,0.89895481]
[1644900713577,0.00606339,3016.6,3016.5,0.07035021]
[1644900713777,0.00606339,3016.6,3016.5,0.82868]
[1644900713978,0.00606339,3016.6,3016.5,0.89903021]
[1644900714176,0.00606339,3016.6,3016.5,0.07035021]
[1644900714383,0.13819997,3017.3,3016.5,0.07035021]
[1644900714578,0.00606343,3016.7,3016.3,0.0055379]
[1644900714780,0.00606343,3016.7,3016.4,0.0703531]
[1644900715079,0.00526343,3016.7,3016.4,0.0703531]
[1644900715476,0.82882,3016.9,3016.4,0.0703531]
[1644900716077,1.65768,3016.9,3016.4,0.0703531]
[1644900716522,0.82882,3016.9,3016.4,0.0703531]
[1644900716927,1.15936276,3017.1,3016.4,0.0703531]
[1644900716928,0.00603484,3016.8,3016.4,0.0703531]
[1644900717925,0.13819997,3017.3,3016.4,0.0703531]
[1644900718124,0.16233466,3017.3,3016.8,1.17522177]
[1644900718724,0.99104466,3017.3,3016.8,1.17522177]
[1644900718924,3.50261888,3017.2,3016.8,1.17522177]
[1644900719323,0.00603484,3017.2,3016.8,1.17522177]
[1644900719823,0.00603484,3017.2,3016.3,1.6728774]
[1644900720077,2.49231864,3017.2,3016.4,0.07035052]
[1644900720276,0.82875,3017.2,3016.4,0.07035052]
[1644900720478,0.00605205,3016.9,3016.4,0.07035052]
[1644900721479,0.91139777,3017.0,3016.4,0.07035052]
[1644900721683,0.00605205,3016.8,3016.4,0.07035052]
[1644900722681,4.03239903,3017.0,3016.4,0.07035052]
[1644900722882,0.00605205,3016.8,3016.4,0.07035052]
[1644900723925,4.09273757,3017.0,3016.4,0.07035052]
[1644900724126,0.00609245,3016.8,3016.4,0.07035052]
[1644900725129,4.08466941,3017.2,3016.4,0.07035052]
[1644900725329,0.00609245,3016.8,3016.4,0.07035052]
[1644900726330,0.8287541,3017.2,3016.7,0.95189196]
[1644900726530,4.06545789,3017.2,3016.8,0.07035052]
[1644900726733,0.82875,3017.0,3016.7,0.95189196]
[1644900726934,0.82875,3017.0,3016.4,0.82872]
[1644900727135,3.22697869,3016.9,3016.5,0.07035448]
[1644900727331,0.82875,3017.0,3016.5,0.07035448]
[1644900727776,0.00602862,3016.9,3016.5,0.07035448]
[1644900727982,0.00602862,3016.9,3016.6,0.07035448]
[1644900728777,5.86374789,3017.3,3016.6,0.07035448]
[1644900728981,0.00602862,3016.9,3016.6,0.07035448]
[1644900729878,0.82873,3017.2,3016.6,0.07035448]
[1644900730082,0.00602862,3016.9,3016.6,0.07035448]
[1644900731221,5.11099227,3017.3,3016.6,0.07035448]
[1644900731424,5.11099227,3017.3,3016.4,0.89907448]
[1644900731425,0.00603783,3016.9,3016.4,0.89907448]
[1644900731623,0.00603783,3016.9,3016.6,0.82872]
[1644900731823,0.00603783,3016.9,3016.7,0.07035448]
[1644900732323,0.82874,3017.2,3016.7,0.07035448]
[1644900732522,0.00603783,3017.0,3016.7,0.07035448]
[1644900733126,0.00603783,3017.0,3016.5,0.07035448]
[1644900733323,0.00603783,3017.0,3016.6,0.07035448]
[1644900733524,0.82874,3017.2,3016.7,1.11717418]
[1644900733725,0.00603783,3016.9,3016.8,0.07035448]
[1644900734726,0.96687997,3017.3,3016.8,0.07035448]
[1644900734979,0.00603649,3017.0,3016.8,0.07035448]
[1644900735185,0.00523649,3017.0,3016.8,0.07035448]
[1644900735981,0.96687997,3017.3,3016.8,0.89902448]
[1644900736180,1.32581622,3017.2,3016.9,0.07035448]
[1644900736380,1.32581622,3017.2,3017.0,0.07035448]
[1644900736580,1.32581622,3017.2,3017.1,0.07035448]
[1644900736981,1.32581622,3017.2,3016.8,0.07035448]
[1644900737182,1.32581622,3017.2,3016.9,0.07035448]
[1644900737383,1.32581622,3017.2,3017.0,0.07035448]
[1644900737782,0.96687997,3017.3,3016.7,1.0468197]
[1644900737987,1.32555853,3017.2,3016.8,0.07034818]
[1644900738384,2.15424853,3017.2,3016.8,0.07034818]
[1644900738583,1.32555853,3017.1,3016.8,0.07034818]
[1644900739823,1.33278273,3017.1,3016.8,0.07034818]
[1644900740023,1.32555853,3017.0,3016.8,0.07034818]
[1644900740824,0.82872,3017.0,3016.8,0.07034818]
[1644900741426,1.32559676,3016.9,3016.8,0.07034818]
[1644900741625,0.82872,3017.0,3016.8,0.07034818]
[1644900741825,1.3256075,3016.9,3016.8,0.07034818]
[1644900742883,1.3256075,3016.9,3016.4,0.07034818]
[1644900743083,1.3256075,3016.9,3016.6,0.82871]
[1644900743289,1.3256075,3016.9,3016.7,0.07034818]
[1644900743685,0.8359442,3017.0,3016.7,0.07034818]
[1644900744086,1.32547987,3016.9,3016.7,0.07034818]
[1644900744483,1.32547987,3016.9,3016.8,0.07034818]
[1644900744886,2.15435987,3016.9,3016.4,0.07034818]
[1644900745084,0.0072242,3017.0,3016.5,0.07034818]
[1644900745284,0.0072242,3017.0,3016.6,0.07034818]
[1644900745285,1.32413829,3016.9,3016.6,0.07034818]
[1644900745485,3.63819997,3017.3,3016.7,0.07034818]
[1644900745789,1.32407791,3017.2,3016.8,0.07034818]
[1644900745987,0.82876,3017.0,3016.9,0.07034818]
[1644900746229,1.32407791,3017.0,3016.6,0.07034818]
[1644900746434,1.32407791,3016.9,3016.7,0.07034818]
[1644900746631,1.32407791,3016.9,3016.8,0.07034818]
[1644900746832,1.6575335,3017.1,3016.8,0.07034818]
[1644900747131,1.32719598,3017.0,3016.9,0.07034818]
[1644900747335,1.32719598,3017.0,3016.4,0.62833342]
[1644900747534,5.34113572,3017.0,3016.5,0.07034818]
[1644900747731,1.32503246,3016.9,3016.6,0.07034818]
[1644900747930,1.32503246,3016.9,3016.7,0.07034818]
[1644900748133,2.16101418,3016.9,3016.8,0.07034818]
[1644900748335,1.33224418,3016.9,3016.8,0.07034818]
[1644900748532,1.33224418,3016.9,3016.4,0.07034818]
[1644900748733,1.32499924,3016.8,3016.4,0.07034818]
[1644900749332,0.00721137,3016.9,3016.5,0.07035242]
[1644900749533,1.3255885,3016.8,3016.6,0.07035242]
[1644900749733,1.3255885,3016.8,3016.7,0.07035242]
[1644900749982,0.00721137,3016.9,3016.7,0.07035242]
[1644900750182,1.3257764,3016.8,3016.5,0.82876]
[1644900750482,1.3257764,3016.8,3016.6,0.07035244]
[1644900750684,1.3257764,3016.8,3016.7,0.07035244]
[1644900751284,1.3257764,3016.8,3016.4,0.07035244]
[1644900751885,1.3257764,3016.8,3016.4,0.89914244]
[1644900752084,0.82882,3016.7,3016.5,0.07035244]
[1644900753087,1.32791277,3016.6,3016.5,0.69868586]
[1644900753287,0.83602137,3016.9,3016.5,0.69868586]
[1644900753493,0.83602137,3016.9,3016.5,0.62833342]
[1644900753494,1.32798222,3016.8,3016.5,0.62833342]
[1644900754330,1.32798222,3016.7,3016.5,1.45711342]
[1644900754532,0.00216345,3016.9,3016.6,0.07035244]
[1644900755032,3.21682409,3017.0,3016.7,0.07035244]
[1644900755234,2.15693677,3016.9,3016.8,0.07035244]
[1644900755432,3.81683949,3016.9,3016.8,0.07035244]
[1644900755634,2.98797949,3016.9,3016.8,0.07035244]
[1644900755831,2.98797949,3016.9,3016.5,0.62833342]
[1644900756039,1.32831598,3016.8,3016.5,0.62833342]
[1644900756232,0.00216352,3016.9,3016.6,0.69868586]
[1644900756434,1.32878209,3016.9,3016.7,0.07035244]
[1644900756634,1.32878209,3016.9,3016.6,0.62833342]
[1644900756635,0.00721149,3016.9,3016.8,0.07035244]
[1644900757033,1.33580738,3016.9,3016.6,0.07035244]
[1644900757234,0.83599149,3016.9,3016.6,0.07035244]
[1644900757501,1.32876522,3016.8,3016.7,0.07035244]
[1644900757698,1.32868753,3016.8,3016.7,0.07035244]
[1644900757903,1.32870925,3016.8,3016.7,0.07035244]
[1644900758102,0.00721172,3016.9,3016.7,0.82873]
[1644900758301,0.00641172,3016.9,3016.8,0.69868586]
[1644900758807,0.00384007,3017.6,3016.8,1.14267556]
[1644900759002,1.32907548,3017.5,3017.1,0.63247237]
[1644900759203,1.32907548,3017.4,3017.2,0.82856]
[1644900759402,1.32907548,3017.4,3017.3,0.07035244]
[1644900759604,1.32907548,3017.6,3017.3,0.07035244]
[1644900759904,0.00386824,3017.5,3017.3,0.07035244]
[1644900760103,1.32907548,3017.4,3017.3,0.07035244]
[1644900760702,2.15769548,3017.6,3017.2,0.07035244]
[1644900760904,2.15769548,3017.6,3016.9,2.28962237]
[1644900760905,1.32907548,3017.5,3017.3,0.07035244]
[1644900761336,1.32907548,3017.5,3017.4,0.07035244]
[1644900761732,1.32907548,3017.5,3017.1,0.07035244]
[1644900761934,1.32907548,3017.5,3016.8,1.0]
[1644900761935,1.32907548,3017.5,3017.2,0.07035244]
[1644900762133,1.32907548,3017.5,3016.9,0.07035244]
[1644900762332,1.32907548,3017.5,3017.0,0.07035244]
[1644900762532,1.3362852,3017.5,3017.1,0.07035244]
[1644900762733,1.32907548,3017.4,3017.1,0.07035244]
[1644900763233,1.32907548,3017.4,3017.2,0.07035244]
[1644900763431,1.32907548,3017.4,3017.3,0.07035244]
[1644900763838,1.32907548,3017.4,3017.0,0.07035244]
[1644900764034,1.32529418,3017.3,3017.1,0.07035244]
[1644900764234,1.32529418,3017.2,3016.9,3.11821237]
[1644900764435,1.32529418,3017.4,3017.0,0.07033906]
[1644900764834,1.32529418,3017.4,3017.1,0.8286]
[1644900765078,1.32529418,3017.3,3017.2,0.07033906]
[1644900766082,1.32529418,3017.3,3017.0,0.82864]
[1644900766284,1.32529418,3017.3,3016.4,3.49417686]
[1644900766285,5.87869,3017.3,3017.1,0.00710746]
[1644900766485,1.32488964,3017.2,3016.7,0.00710746]
[1644900766681,1.32488964,3017.2,3016.4,0.80836903]
[1644900766682,1.79988964,3017.2,3016.4,0.17589666]
[1644900766883,0.475,3017.2,3016.4,0.17589666]
[1644900767282,0.475,3017.2,3016.4,0.1656]
[1644900767283,1.3038607,3017.2,3016.4,0.1656]
[1644900767482,1.3038607,3017.2,3016.2,0.00550861]
[1644900767483,0.82887,3016.9,3016.2,0.00550861]
[1644900767683,1.03621637,3016.6,3016.0,0.00550861]
[1644900768280,0.3,3016.7,3016.0,0.63798098]
[1644900768481,0.775,3016.7,3016.1,0.63798098]
[1644900768729,1.6580815,3016.5,3016.1,0.63247237]
[1644900768930,0.8290215,3016.5,3016.2,0.00550861]
[1644900769133,1.658043,3016.6,3016.0,0.63247237]
[1644900769330,2.67727546,3016.6,3016.1,0.00550861]
[1644900769530,2.67727546,3016.6,3016.1,0.63798098]
[1644900769732,5.91246576,3016.6,3016.1,0.00809239]
[1644900769930,2.67727546,3016.6,3016.2,0.00550861]
[1644900770133,1.65794,3016.5,3016.1,0.64056476]
[1644900770430,1.65794,3016.5,3016.2,0.00550861]
[1644900770431,1.6579446,3016.4,3016.2,0.00550861]
[1644900770631,0.82904,3016.3,3016.1,0.00809239]
[1644900770831,0.82904,3016.3,3016.0,0.00550861]
[1644900770832,2.4871143,3016.3,3016.0,0.00550861]
[1644900771033,2.4871143,3016.3,3016.1,0.01025177]
[1644900771637,0.8290274,3016.2,3016.1,0.01025177]
[1644900771833,1.6580674,3016.2,3016.1,0.01025177]
[1644900772033,1.6580674,3016.2,3016.0,0.63798098]
[1644900772238,1.3532,3016.9,3016.1,0.63247237]
[1644900772476,1.1876,3016.9,3016.3,0.63247237]
[1644900772676,0.00719543,3017.0,3016.3,0.63247237]
[1644900772876,0.8287604,3016.9,3016.3,0.63247237]
[1644900773080,0.8287604,3016.9,3016.1,1.16450861]
[1644900773081,1.95953856,3016.9,3016.2,0.63247237]
[1644900773276,1.95955816,3016.9,3016.2,0.63247237]
[1644900773477,1.95955816,3016.9,3016.4,0.01025127]
[1644900773678,0.82878,3016.9,3016.4,0.01025127]
[1644900774284,0.8288787,3016.8,3016.4,0.01025127]
[1644900774479,0.8288787,3016.8,3016.3,0.82878]
[1644900774679,0.8288787,3016.8,3016.4,0.0102513]
[1644900775680,0.8288787,3016.8,3016.3,0.82878]
[1644900775882,0.8288787,3016.8,3016.4,0.01025127]
[1644900776726,0.8288787,3016.8,3016.3,1.46125237]
[1644900777126,0.8288787,3016.8,3016.4,0.01025127]
[1644900778029,0.8288787,3016.8,3016.3,1.46125237]
[1644900778527,0.74599084,3016.8,3016.4,0.01025127]
[1644900779330,0.74599084,3016.8,3016.3,1.46125237]
[1644900779531,0.74599084,3016.8,3016.4,0.01025127]
[1644900779729,0.82881,3016.7,3016.4,0.01025127]
[1644900779999,0.0071965,3017.0,3016.4,0.01025127]
[1644900780201,0.0071965,3017.0,3016.4,0.96085127]
[1644900780397,1.1862,3017.3,3016.4,1.58307237]
[1644900780596,1.1862,3017.3,3016.5,0.63247237]
[1644900780798,0.00719674,3017.0,3016.5,0.63247237]
[1644900780997,0.8287453,3016.9,3016.5,0.63247237]
[1644900781399,0.8287453,3016.9,3016.4,1.47148371]
[1644900781596,0.8287453,3016.9,3016.4,0.63247237]
[1644900781597,0.82883,3016.9,3016.4,0.63247237]
[1644900781798,0.82883,3016.9,3016.1,0.00550861]
[1644900781799,1.65761,3016.9,3016.6,0.3314]
[1644900781999,1.1287777,3016.8,3016.6,0.3314]
[1644900782202,3.36400928,3016.7,3016.6,0.3314]
[1644900782398,4.36400928,3016.7,3016.6,0.3314]
[1644900782601,5.36405309,3016.7,3016.6,0.3314]
[1644900783200,2.00004381,3016.7,3016.6,0.3314]
[1644900783600,5.17217495,3016.7,3016.6,0.3314]
[1644900783827,2.00004381,3016.7,3016.6,0.3314]
[1644900784430,5.29449599,3016.7,3016.6,0.3314]
[1644900785732,5.29449599,3016.7,3016.4,0.01024307]
[1644900785933,0.8288924,3016.6,3016.4,0.01024307]
[1644900786332,0.8288924,3016.6,3016.5,0.07081092]
[1644900786532,2.14908503,3016.6,3016.5,0.07081092]
[1644900786732,2.14908503,3016.6,3016.3,0.08105391]
[1644900786932,2.14908503,3016.6,3016.4,0.07081092]
[1644900786933,1.32019263,3016.5,3016.4,0.07081092]
[1644900787980,1.32019263,3016.5,3016.3,0.08105405]
[1644900788182,1.32019263,3016.5,3016.4,0.07081092]
[1644900788980,1.32019263,3016.5,3015.4,3.75055074]
[1644900788981,19.36,3016.2,3015.4,3.75055074]
[1644900789183,19.36,3016.2,3015.7,0.07085674]
[1644900789184,0.8291614,3016.0,3015.7,0.07085674]
[1644900789380,4.82019263,3015.9,3015.3,0.07085674]
[1644900789580,4.82019263,3015.9,3015.2,0.04098775]
[1644900789581,2.14944263,3015.8,3015.2,0.04098775]
[1644900789781,1.32019263,3015.7,3015.2,0.04098775]
[1644900789983,1.62019263,3015.7,3015.2,0.04098775]
[1644900790186,1.02643654,3015.6,3014.6,0.84127562]
[1644900790582,1.02643654,3015.6,3014.5,0.84127562]
[1644900790782,1.85573194,3015.6,3014.5,0.84127562]
[1644900790983,0.82928,3015.2,3014.4,0.84127562]
[1644900791236,0.82928,3015.2,3014.5,0.84127562]
[1644900791439,0.82928,3015.2,3014.7,1.14493024]
[1644900791836,1.65856,3015.2,3014.7,1.14493024]
[1644900792139,0.82928,3015.0,3014.7,1.14493024]
[1644900792937,0.8292325,3015.0,3014.7,1.14493024]
[1644900793937,0.8292325,3015.0,3014.7,1.15499989]
[1644900794338,0.8292325,3015.0,3014.7,0.01006965]
[1644900794739,0.8291957,3015.2,3014.7,0.01006965]
[1644900794987,0.8291957,3015.2,3014.4,0.84127562]
[1644900794988,1.0,3015.5,3014.4,0.84127562]
[1644900795188,1.0,3015.5,3014.7,0.01006965]
[1644900795390,3.3,3015.2,3014.8,1.13673988]
[1644900795989,3.3,3015.2,3014.4,0.84127562]
[1644900796388,3.3,3015.2,3014.8,0.01006925]
[1644900797188,3.3,3015.2,3014.8,1.10194152]
[1644900797388,3.3,3015.2,3014.8,1.09187227]
[1644900797588,3.3,3015.2,3014.8,1.10211104]
[1644900798189,3.3,3015.2,3014.8,0.01023877]
[1644900798389,3.3,3015.2,3014.4,0.84127562]
[1644900798590,4.9585986,3015.2,3014.4,0.84127562]
[1644900798837,4.9585986,3015.2,3014.8,0.00952242]
[1644900799437,0.8293,3015.1,3014.8,0.00952242]
[1644900799635,1.6586,3015.1,3014.4,1.08545285]
[1644900800037,0.8292864,3014.9,3014.8,0.0095709]
[1644900800237,3.3,3015.2,3014.8,0.0095709]
[1644900800640,0.82925,3015.1,3014.8,0.0095709]
[1644900800839,0.82925,3015.1,3014.4,1.92672847]
[1644900801239,0.82925,3015.1,3014.8,0.0095709]
[1644900802040,1.73569728,3015.1,3014.8,0.0095709]
[1644900802239,1.73569728,3015.1,3014.3,0.84127562]
[1644900802483,1.73569728,3015.1,3014.8,0.0095709]
[1644900802891,1.6584989,3015.1,3014.8,0.0095709]
[1644900803085,3.3,3015.2,3014.8,0.0095709]
[1644900803291,3.3,3015.2,3014.5,5.0462905]
[1644900803486,3.3,3015.2,3014.6,0.475]
[1644900803685,3.3,3015.2,3014.8,0.0095709]
[1644900803891,3.3,3015.2,3014.8,0.4845709]
[1644900804086,3.3,3015.2,3014.9,3.15267962]
[1644900804486,3.3,3015.2,3014.5,4.23432392]
[1644900804686,3.3,3015.2,3014.5,3.40513392]
[1644900804886,3.3,3015.2,3014.9,0.00956739]
[1644900805088,1.0,3015.1,3014.9,0.00956739]
[1644900805285,1.82932,3015.1,3014.9,0.00956739]
[1644900805685,1.82932,3015.1,3014.6,0.00543046]
[1644900806087,1.82932,3015.1,3014.8,0.00956751]
[1644900806536,0.82932,3015.1,3014.8,0.00956751]
[1644900806937,0.82932,3015.1,3014.4,0.00543046]
[1644900807135,0.82932,3015.1,3014.8,0.00956763]
[1644900807136,4.11901837,3015.1,3014.8,0.00956763]
[1644900807737,1.01445162,3014.9,3014.8,0.00956763]
[1644900807942,4.38750861,3014.9,3014.8,0.00956763]
[1644900808138,5.21686861,3014.9,3014.4,0.00543046]
[1644900808441,5.21686861,3014.9,3014.7,0.0095681]
[1644900808640,2.67315052,3014.9,3014.7,0.0095681]
[1644900809039,3.50255052,3014.9,3014.7,0.0095681]
[1644900809439,1.84381162,3014.9,3014.2,0.00543046]
[1644900809640,0.82937,3014.7,3014.6,0.00956822]
[1644900810597,0.82937,3014.7,3014.2,0.00543046]
[1644900810797,1.6587526,3014.7,3014.5,0.00956859]
[1644900811400,1.84379162,3014.9,3014.5,0.00956859]
[1644900811701,0.8293316,3014.8,3014.2,0.82929]
[1644900811997,2.4962,3015.1,3014.5,0.00956846]
[1644900812997,2.4962,3015.1,3014.5,0.00543046]
[1644900812998,1.3,3015.1,3014.5,0.00543046]
[1644900813197,1.3,3015.1,3014.6,0.00956821]
[1644900813398,0.8292823,3015.0,3014.6,0.00956821]
[1644900814234,1.65872,3015.1,3015.0,0.00147278]
[1644900814834,2.48807,3015.1,3015.0,0.00147278]
[1644900815036,1.65872,3015.1,3015.0,0.00147278]
[1644900815236,3.3,3015.2,3015.0,0.00147278]
[1644900818084,3.3,3015.2,3015.0,0.00690324]
[1644900818286,3.3,3015.2,3015.0,0.83600324]
[1644900818689,3.3,3015.2,3015.1,3.36201709]
[1644900818886,3.3,3015.2,3015.1,4.52246078]
[1644900819087,3.3,3015.2,3015.1,3.36201709]
[1644900819291,3.29913597,3015.2,3015.0,0.83600324]
[1644900819686,3.29913597,3015.2,3015.1,3.16539497]
[1644900819886,3.29913597,3015.2,3015.0,0.83600324]
[1644900820102,3.29913597,3015.2,3015.0,0.00690324]
[1644900820288,4.95776597,3015.2,3015.0,0.00147278]
[1644900820488,3.29913597,3015.2,3015.0,0.01647059]
[1644900820688,3.29913597,3015.2,3015.0,0.01104013]
[1644900821338,3.29913597,3015.2,3015.0,0.00147278]
[1644900824338,6.48917788,3015.2,3015.0,0.00147278]
[1644900824837,6.51990399,3015.2,3015.0,0.00147278]
[1644900825092,3.29913597,3015.2,3015.0,0.00147278]
[1644900825291,0.11213997,3016.0,3015.1,5.05]
[1644900825492,2.19828197,3017.0,3016.1,0.16810192]
[1644900825690,1.3804561,3016.9,3016.1,0.86810192]
[1644900825892,0.90204514,3016.8,3016.2,0.54537128]
[1644900826093,1.3804561,3016.9,3016.2,0.54537128]
[1644900826296,0.1656,3017.8,3016.4,5.05]
[1644900826297,1.3797589,3016.8,3016.4,5.05]
[1644900826495,0.00719626,3017.0,3016.5,3.975]
[1644900826690,0.02878128,3017.4,3016.5,5.44030929]
[1644900827093,0.02878128,3017.4,3016.6,0.82841]
[1644900827295,0.02878128,3017.4,3016.6,0.475]
[1644900827493,0.94918838,3017.2,3016.6,0.475]
[1644900827693,0.94918838,3017.2,3016.3,0.3]
[1644900827897,0.94918838,3017.2,3016.1,0.16810192]
[1644900828939,1.16114008,3016.7,3016.1,0.16810192]
[1644900829837,1.46114008,3016.7,3016.1,0.16810192]
[1644900830037,1.46114008,3016.7,3016.2,0.01023123]
[1644900830240,1.16114008,3016.7,3016.2,0.01023123]
[1644900830638,0.82895,3016.9,3016.2,0.01023123]
[1644900830841,1.823522,3017.1,3016.2,0.01023123]
[1644900830842,0.1656,3017.1,3016.2,0.01023123]
[1644900831041,1.90769997,3017.6,3016.2,2.32693]
[1644900831239,0.00716549,3017.2,3016.4,0.01023082]
[1644900831645,0.00716549,3017.2,3016.7,1.0797394]
[1644900831939,0.00716549,3017.2,3016.3,3.9656]
[1644900832141,0.13819997,3017.6,3016.3,3.8]
[1644900832339,1.79581067,3017.6,3016.3,3.8]
[1644900832591,0.82882,3017.3,3016.1,0.16810192]
[1644900832789,0.475,3017.5,3016.1,0.16810192]
[1644900832790,1.1883,3017.4,3016.1,0.16810192]
[1644900832997,1.1883,3017.4,3016.2,1.09232451]
[1644900832998,1.13590557,3017.1,3016.2,1.09232451]
[1644900833193,1.13590557,3017.1,3016.3,3.23557841]
[1644900833594,1.13590557,3017.1,3016.1,0.16810192]
[1644900833797,19.835,3017.0,3016.1,0.16810192]
[1644900834195,20.36,3016.9,3016.1,0.16810192]
[1644900834396,20.36,3016.9,3015.4,0.00543046]
[1644900834397,5.05,3016.5,3015.4,0.00543046]
[1644900834592,0.88480629,3015.5,3015.4,0.00543046]
[1644900834792,0.88480629,3015.5,3015.2,0.63546132]
[1644900834991,5.85992,3016.3,3015.3,0.0409376]
[1644900835194,5.85992,3016.3,3015.3,0.67639892]
[1644900835195,3.30222,3016.3,3015.3,0.67639892]
[1644900835492,1.829167,3016.2,3015.3,0.0409376]
[1644900835691,2.129167,3016.2,3015.4,0.00543046]
[1644900835893,2.129167,3016.2,3015.0,3.50147278]
[1644900835894,1.04676865,3015.9,3015.2,0.00543046]
[1644900836097,1.04676865,3015.9,3015.6,0.01023297]
[1644900837035,1.04676865,3015.9,3015.1,0.63003086]
[1644900837335,1.04676865,3015.9,3015.6,0.01023297]
[1644900837734,4.34676865,3015.9,3015.6,0.01023297]
[1644900838135,4.34676865,3015.9,3015.1,0.67096887]
[1644900838136,3.20904514,3015.8,3015.1,0.67096887]
[1644900838336,3.20904514,3015.8,3015.1,0.00543046]
[1644900838536,3.20904514,3015.8,3015.6,0.01023297]
[1644900838736,3.23199907,3015.8,3015.6,0.01023297]
[1644900838936,3.23828976,3015.8,3015.6,0.01023297]
[1644900839340,3.23828976,3015.8,3015.1,0.04093801]
[1644900839341,1.0,3015.7,3015.1,0.04093801]
[1644900839535,1.0,3015.7,3015.0,0.00147278]
[1644900839536,1.13241941,3015.4,3015.0,0.00147278]
[1644900839737,3.47437238,3015.8,3015.5,0.01004123]
[1644900840584,3.3,3015.9,3015.0,0.00147278]
[1644900840788,0.9523311,3015.6,3015.5,0.01004136]
[1644900841888,0.9523311,3015.6,3015.0,0.00147278]
[1644900842085,0.9523311,3015.6,3015.4,0.01004162]
[1644900843084,0.9523311,3015.6,3015.0,0.00690324]
[1644900843286,0.9523311,3015.6,3015.3,0.00953041]
[1644900843488,1.0,3015.8,3015.3,0.00953041]
[1644900844333,1.0,3015.8,3015.1,0.00543046]
[1644900844537,4.40332028,3015.9,3015.1,0.83447046]
[1644900844737,4.40332028,3015.9,3015.2,0.00543046]
[1644900845033,4.40332028,3015.9,3015.3,0.63003086]
[1644900845434,4.40332028,3015.9,3015.3,0.00543046]
[1644900845435,3.3,3015.9,3015.3,0.00543046]
[1644900845635,2.85966798,3015.9,3015.3,0.83441046]
[1644900846141,2.85966798,3015.9,3015.4,0.475]
[1644900846735,2.85966798,3015.9,3015.3,0.57383046]
[1644900846736,2.85966798,3015.9,3015.5,0.07036499]
[1644900846935,2.85966798,3015.9,3015.6,0.07036499]
[1644900848085,2.85966798,3015.9,3015.7,0.07036499]
[1644900849287,2.85966798,3015.9,3015.8,0.07036499]
[1644900849691,2.85966798,3015.9,3015.7,0.07036499]
[1644900849887,2.85966798,3015.9,3015.8,0.07036499]
[1644900850288,2.85966798,3015.9,3015.7,0.07036499]
[1644900850488,2.85966798,3015.9,3015.8,0.07036499]
[1644900851738,2.85966798,3015.9,3015.7,0.08058998]
[1644900851938,2.85966798,3015.9,3015.8,0.07036499]
[1644900852443,2.85966798,3015.9,3015.8,1.20606499]
[1644900852840,2.85966798,3015.9,3015.8,2.50606499]
[1644900853038,2.85966798,3015.9,3015.8,1.50606499]
[1644900853238,2.85966798,3015.9,3015.8,3.16355499]
[1644900854241,2.85966798,3015.9,3015.8,4.16355499]
[1644900854845,0.00719018,3016.8,3016.5,0.6347]
[1644900855100,3.0232,3017.2,3016.5,0.6347]
[1644900855101,3.26706821,3017.6,3016.6,1.19894499]
[1644900855294,3.26706821,3017.6,3016.7,0.89885499]
[1644900855295,1.32852598,3017.5,3016.7,0.89885499]
[1644900855492,0.00719018,3016.8,3016.7,0.82849]
[1644900855698,0.00719018,3016.8,3016.7,0.07034842]
[1644900856294,1.18844728,3017.3,3016.7,0.07034842]
[1644900856494,1.18844728,3017.3,3016.8,0.07034842]
[1644900856495,0.00719213,3016.9,3016.8,0.07034842]
[1644900856695,0.00719213,3016.9,3016.6,0.07034842]
[1644900857397,0.00719213,3016.9,3016.7,0.07034842]
[1644900857599,1.18844728,3017.3,3016.2,2.95739]
[1644900857795,1.13793117,3016.8,3016.3,0.07035455]
[1644900857997,0.00719213,3016.9,3016.4,0.82873]
[1644900858199,0.00719213,3016.9,3016.5,0.07035455]
[1644900858845,1.22156824,3017.4,3016.5,0.07035455]
[1644900859047,0.00719213,3016.9,3016.5,0.07035455]
[1644900859243,0.00719213,3016.9,3016.6,0.82867]
[1644900859244,3.30719213,3016.9,3016.6,0.82867]
[1644900859443,3.30719213,3016.9,3016.7,0.07035455]
[1644900859844,3.3,3016.9,3016.7,0.07035455]
[1644900862049,3.3,3016.9,3016.7,0.89899455]
[1644900862249,3.3,3016.9,3016.8,0.07035455]
[1644900863084,3.3,3016.9,3016.5,0.07035455]
[1644900863284,3.3,3016.9,3016.5,0.89904455]
[1644900863585,3.3,3016.9,3016.6,0.07035455]
[1644900863787,3.3,3016.9,3016.7,0.07035455]
[1644900863984,3.30719213,3016.9,3016.8,0.07035455]
[1644900864484,3.30719213,3016.9,3016.5,0.07035455]
[1644900864685,3.30719213,3016.9,3016.4,1.95727]
[1644900864686,3.3,3016.9,3016.6,0.89902455]
[1644900865086,3.3,3016.9,3016.7,0.07035455]
[1644900865285,3.3,3016.9,3016.4,1.65727]
[1644900865489,3.3,3016.9,3016.5,0.07344253]
[1644900865686,3.3,3016.9,3016.5,0.90214253]
[1644900865886,3.3,3016.9,3016.6,0.07344253]
[1644900866344,3.4114141,3016.8,3016.6,0.07344253]
[1644900866544,3.4114141,3016.8,3016.2,0.01021608]
[1644900866545,0.13915878,3016.4,3016.2,0.01021608]
[1644900866741,0.13915878,3016.4,3016.3,0.0735467]
[1644900867547,0.13915878,3016.4,3016.2,0.010216]
[1644900867741,0.13915878,3016.4,3016.3,0.0735467]
[1644900868343,0.13915878,3016.4,3016.3,1.0903467]
[1644900868543,0.13915878,3016.4,3016.3,1.5653467]
[1644900868942,0.13915878,3016.4,3016.3,2.19355767]